Cogmind - Beta 11 X8 *** ADVENTURER MODE // 2021.11.12 @ 13:47:28 Player: Rogirek Result: Self-destructed Performance ------------- Evolutions (2) 1000 Regions Visited (5) 1000 Robots Destroyed (31) 155 Value Destroyed (1081) 1081 Prototype IDs (28) 560 Alien Tech Used (0) 0 Bonus (347) 347 TOTAL SCORE: 4143 Bonus ------- Follower Combat Kills 47 Aligned with FarCom 300 Cogmind --------- Core Integrity 480/550 Matter 300/300 Energy 140/140 System Corruption 0% Temperature Cool (9) Movement Treading (240) Ox1 Location -8/Materials Parts ------- > --- POWER (1) -------- Light Deuterium Engine > --- PROPULSION (3) --- Improved Treads Wheel > --- UTILITY (4) ------ Improved Heat Sink Large Storage Unit Structural Scanner Light Armor Plating > --- WEAPON (3) ------- Improved Medium Laser Heavy Laser Heavy Assault Rifle > --- INVENTORY (15) --- Ion Engine Light Deuterium Engine Light Nuclear Core Small Storage Unit Hardened Light Armor Plating Trap Reconfigurator Grenade Launcher Missile Launcher Mining Claw Peak State ------------ > --- POWER ------------ Light Deuterium Engine > --- PROPULSION ------- Improved Treads Improved Treads Improved Treads > --- UTILITY ---------- Large Storage Unit Structural Scanner Hardened Light Armor Plating Trap Reconfigurator > --- WEAPON ----------- Improved Medium Laser Improved Medium Laser Heavy Assault Rifle > --- INVENTORY -------- Ion Engine Light Deuterium Engine Light Nuclear Core Wheel Wheel Wheel Wheel Improved Heat Sink Small Storage Unit Improved Medium Laser Grenade Launcher Mining Claw [Rating: 32] Favorites ----------- Power Light Deuterium Engine Engine Light Deuterium Engine Propulsion Improved Treads Treads Improved Treads Wheel Wheel Utility Large Storage Unit Device Improved Heat Sink Storage Large Storage Unit Protection Hardened Light Armor Plating Weapon Improved Medium Laser Energy Gun Improved Medium Laser Ballistic Gun Heavy Assault Rifle Launcher Grenade Launcher Build | -11 -10 -10 -10 -9 -8 ------- Run | Scr Mat Min Exi Min Mat Slots Evolved 4 | . . . . . 4 Power . | . . . . . . Propulsion 1 | . . . . . 1 Utility 2 | . . . . . 2 Weapon 1 | . . . . . 1 Parts Attached 40 | 6 10 7 2 . 15 Power 5 | 1 1 2 . . 1 Engine 5 | 1 1 2 . . 1 Core . | . . . . . . Reactor . | . . . . . . Propulsion 10 | 2 2 . . . 6 Treads 6 | 2 2 . . . 2 Leg . | . . . . . . Wheel 4 | . . . . . 4 Hover . | . . . . . . Flight . | . . . . . . Utility 13 | 1 3 3 2 . 4 Device 9 | . 2 3 2 . 2 Storage 2 | 1 1 . . . . Processor . | . . . . . . Hackware . | . . . . . . Protection 2 | . . . . . 2 Artifact . | . . . . . . Weapon 12 | 2 4 2 . . 4 Energy Gun 10 | 2 4 1 . . 3 Energy Cannon . | . . . . . . Ballistic Gun 1 | . . . . . 1 Ballistic Cannon . | . . . . . . Launcher 1 | . . 1 . . . Special Weapon . | . . . . . . Impact Weapon . | . . . . . . Slashing Weapon . | . . . . . . Piercing Weapon . | . . . . . . Special Melee Weapon . | . . . . . . Unidentified Prototypes 2 | . 1 . . . 1 Parts Lost 6 | . . 1 . . 5 Power . | . . . . . . Propulsion 3 | . . . . . 3 Utility 1 | . . 1 . . . Weapon 2 | . . . . . 2 Highest Loss Streak 3 | . . 1 . . 3 Average Slot Usage (%) 98 | . 98 99 99 100 91 Engine 13 | . 14 14 14 14 9 Treads 25 | . 28 28 28 28 5 Wheel 1 | . . . . . 16 Device 13 | . 12 13 13 14 18 Storage 13 | . 14 14 14 14 9 Energy Gun 25 | . 28 23 28 28 17 Launcher 1 | . . 4 . . . Naked Turns . | . . . . . . Heaviest Build 42 | 13 33 32 32 32 42 Greatest Support 46 | 40 46 46 46 46 46 Greatest Overweight (x) 3 | . . . . . 3 Average Overweight (x) . | . . . . . . Largest Inventory Capacity 15 | 8 15 15 15 15 15 Average Capacity 14 | 7 14 15 15 15 15 Most Carried 15 | 6 15 15 15 15 14 Average Carried 12 | 2 10 14 14 15 10 Final Capacity 15 | 8 15 15 15 15 15 Final Carried 15 | 6 15 14 15 15 9 Class Distribution -------------------- 92% | Mutant 3% | Skirmisher 3% | Scavenger-Skirmisher Dominant Class ---------------- Mutant | -10/Materials Mutant | -10/Mines Mutant | -10/Exiles Mutant | -9/Mines Skirmisher | -8/Materials Resources | -11 -10 -10 -10 -9 -8 ----------- Run | Scr Mat Min Exi Min Mat Matter Collected 734 | 260 60 145 . 43 226 Remotely . | . . . . . . Salvage Created 1348 | 104 254 305 . . 685 Parts 64 | 5 20 13 . . 26 Haulers Intercepted . | . . . . . . Recyclers Shooed 1 | . 1 . . . . Parts Field Recycled . | . . . . . . Retrieved Matter . | . . . . . . Parts Self-Destructed . | . . . . . . Prevented . | . . . . . . Kills | -11 -10 -10 -10 -9 -8 ------- Run | Scr Mat Min Exi Min Mat Combat Hostiles Destroyed 36 | . 8 15 . . 13 Guns 33 | . 8 13 . . 12 AOE 2 | . . 2 . . . Classes Destroyed 9 | 2 2 2 . . 3 Worker 1 | 1 . . . . . Tunneler 1 | . . . . . 1 Recycler 1 | 1 . . . . . Swarmer 6 | . 3 3 . . . Grunt 17 | . 5 2 . . 10 Sentry 2 | . . . . . 2 Demolisher 2 | . . 2 . . . Heavy 1 | . . . . . 1 Assembled 8 | . . 8 . . . Best Kill Streak 11 | 2 3 3 . . 11 Combat Bots Only 10 | . 3 3 . . 10 Max Kills in Single Turn 1 | 1 1 1 . . 1 Gunslinging . | . . . . . . Exploded 1 | . . 1 . . . Melee . | . . . . . . Uniques/NPCs Destroyed . | . . . . . . Combat | -11 -10 -10 -10 -9 -8 -------- Run | Scr Mat Min Exi Min Mat Damage Taken 1491 | . 176 526 . 36 753 Core 196 | . 20 88 . 18 70 Absorbed by Shields . | . . . . . . Core Remaining (%) 74 | 100 . . . 49 . Volleys Fired 104 | 3 25 44 . . 32 Largest 3 | 2 2 2 . . 3 Hottest 148 | 90 100 112 . . 148 Shots Fired 205 | 6 50 65 . . 84 Gun 202 | 6 50 62 . . 84 Cannon . | . . . . . . Launcher 3 | . . 3 . . . Special . | . . . . . . Kinetic 32 | . . . . . 32 Thermal 170 | 6 50 62 . . 52 Explosive 3 | . . 3 . . . Electromagnetic . | . . . . . . Robot Hit Streak 44 | 4 11 9 . . 44 Robot Miss Streak 3 | . 2 3 . . 1 Penetration Max . | . . . . . . Secondary Targets 3 | . 1 . . . 2 Max Gunslinging Chain 1 | . 1 . . . 1 Shots Hit Robots 158 | 4 36 41 . . 77 Core Hits 73 | 3 16 26 . . 28 Critical Kills . | . . . . . . Critical Parts Destroyed . | . . . . . . Critical Strikes 16 | 1 2 6 . . 7 Burn 16 | 1 2 6 . . 7 Melee Attacks . | . . . . . . Impact . | . . . . . . Slashing . | . . . . . . Piercing . | . . . . . . Sneak Attacks . | . . . . . . Combat Hostiles . | . . . . . . Follow-up Attacks . | . . . . . . Damage Inflicted 2589 | 59 428 832 . . 1270 Guns 2474 | 59 428 717 . . 1270 Cannons . | . . . . . . Explosions 115 | . . 115 . . . Melee . | . . . . . . Ramming . | . . . . . . Kinetic 392 | . . . . . 392 Thermal 2082 | 59 428 717 . . 878 Explosive 115 | . . 115 . . . Electromagnetic . | . . . . . . Impact . | . . . . . . Slashing . | . . . . . . Piercing . | . . . . . . Highest Corruption 3 | . . 3 3 3 . Average Corruption 3 | . . 3 3 3 . Corruption Purged . | . . . . . . Effects 20 | . . 3 9 8 . Message Errors 6 | . . . 5 1 . Matter Fused 4 | . . 2 . 2 . Heat Flow Errors 5 | . . . 1 4 . Energy Discharges 3 | . . 1 2 . . Data Loss (minor) 2 | . . . 1 1 . Overload Shots . | . . . . . . Overflow Damage . | . . . . . . Projectiles . | . . . . . . Explosions . | . . . . . . Melee . | . . . . . . Knockbacks . | . . . . . . Impact . | . . . . . . Kinetic . | . . . . . . Secondary . | . . . . . . Self-Inflicted Damage . | . . . . . . Shots . | . . . . . . Rammed . | . . . . . . Targets Rammed . | . . . . . . Kicked . | . . . . . . Crushed . | . . . . . . Highest Temperature 329 | 30 120 306 224 261 329 Average Temperature 98 | 18 40 71 113 123 140 Received Heat Transfer 703 | . 138 40 . . 525 Effects 6 | . . 2 . 1 3 Energy Bleed 1 | . . . . 1 . Interference 5 | . . 2 . . 3 Siege Activations . | . . . . . . Robots Corrupted . | . . . . . . Combat Hostiles . | . . . . . . Parts Fried . | . . . . . . Impact Corruptions . | . . . . . . Robots Melted 1 | . . . . . 1 Combat Hostiles 1 | . . . . . 1 Parts Melted 13 | . 1 3 . . 9 Heat Transferred 5974 | 235 1336 1998 . . 2405 Parts Sabotaged . | . . . . . . Parts Stolen . | . . . . . . Parts Stripped . | . . . . . . Power Chain Reactions . | . . . . . . Missiles Intercepted . | . . . . . . Alert | -11 -10 -10 -10 -9 -8 ------- Run | Scr Mat Min Exi Min Mat Peak Influence 385 | 10 143 176 . . 385 Initial 6 | . 5 6 . . . Average 57 | 1 72 43 . . 147 Maximum Alert Level 1 | . . . . . 1 Low Security (%) 95 | 100 100 100 . 100 67 Level 1 4 | . . . . . 32 Level 2 . | . . . . . . Level 3 . | . . . . . . Level 4 . | . . . . . . Level 5 . | . . . . . . High Security . | . . . . . . Max Security . | . . . . . . Squads Dispatched 1 | . . . . . 1 Investigation . | . . . . . . Extermination . | . . . . . . Reinforcement 1 | . . . . . 1 Assault . | . . . . . . Garrison . | . . . . . . Intercept . | . . . . . . Construction Impeded . | . . . . . . Haulers Reinforced . | . . . . . . Active Scanning Responses . | . . . . . . Cargo Convoy Interrupts . | . . . . . . Stealth | -11 -10 -10 -10 -9 -8 --------- Run | Scr Mat Min Exi Min Mat Distress Signals 3 | . 1 . . . 2 Communications Jammed . | . . . . . . Distress Signals . | . . . . . . Times Spotted 51 | . 16 13 . . 22 Peak Tracking Total 11 | . 4 3 . . 11 Tactical Retreats 6 | . 3 1 . . 2 Traps | -11 -10 -10 -10 -9 -8 ------- Run | Scr Mat Min Exi Min Mat Traps Triggered . | . . . . . . Indirectly . | . . . . . . Trap Hack Attempts . | . . . . . . Triggered . | . . . . . . Disarmed 4 | . 4 . . . . Reprogrammed . | . . . . . . Reused . | . . . . . . Traps Reconfigurated 1 | . . . . 1 . Traps Extracted . | . . . . . . Installed . | . . . . . . Triggered . | . . . . . . Machines | -11 -10 -10 -10 -9 -8 ---------- Run | Scr Mat Min Exi Min Mat Machines Disabled . | . . . . . . Max in Single Turn . | . . . . . . Machines Sabotaged . | . . . . . . Garrisons Compromised . | . . . . . . Overloaded Fab Kills . | . . . . . . Hacking | -11 -10 -10 -10 -9 -8 --------- Run | Scr Mat Min Exi Min Mat Machines Accessed 10 | . 6 . 1 1 2 Terminals 8 | . 6 . . . 2 Fabricators . | . . . . . . Repair Stations . | . . . . . . Recycling Units . | . . . . . . Scanalyzers . | . . . . . . Garrison Access . | . . . . . . Total Hacks 31 | . 22 . 1 1 7 Successful 18 | . 13 . 1 1 3 Failed 13 | . 9 . . . 4 Catastrophic 2 | . 1 . . . 1 Database Lockouts . | . . . . . . Manual 22 | . 15 . 1 . 6 Terminals 29 | . 22 . . . 7 Fabricators . | . . . . . . Repair Stations . | . . . . . . Recycling Units . | . . . . . . Scanalyzers . | . . . . . . Garrison Access . | . . . . . . Terminal Hacks 9 | . 6 . 1 1 1 Record 1 | . . . . . 1 Prototype ID Bank 2 | . 2 . . . . Open Door 1 | . . . . 1 . Branch Access Points 1 | . 1 . . . . Locate Traps 1 | . 1 . . . . Disarm Traps 1 | . 1 . . . . Registered Prototypes 1 | . 1 . . . . EX-Prototype ID Bank 1 | . . . 1 . . Fabricator Hacks . | . . . . . . Repair Station Hacks . | . . . . . . Recycling Unit Hacks . | . . . . . . Scanalyzer . | . . . . . . Garrison Access Hacks . | . . . . . . Unauthorized Hacks 9 | . 7 . . . 2 Terminals 9 | . 7 . . . 2 Track 1 | . 1 . . . . Botnet 8 | . 6 . . . 2 Fabricators . | . . . . . . Repair Stations . | . . . . . . Recycling Units . | . . . . . . Scanalyzers . | . . . . . . Garrison Access . | . . . . . . Data Cores Recovered . | . . . . . . Used . | . . . . . . Hacking Detections 7 | . 5 . . . 2 Full Trace Events . | . . . . . . Feedback Events . | . . . . . . Feedback Blocked . | . . . . . . Robot Schematics Acquired . | . . . . . . Robots Built . | . . . . . . Authchips . | . . . . . . Time . | . . . . . . Total Robot Build Rating . | . . . . . . Part Schematics Acquired . | . . . . . . Parts Built . | . . . . . . Authchips . | . . . . . . Time . | . . . . . . Total Part Build Rating . | . . . . . . Parts Repaired . | . . . . . . Time . | . . . . . . Parts Recycled . | . . . . . . Recycled Matter . | . . . . . . Retrieved Matter . | . . . . . . Retrieved Components . | . . . . . . Parts Scanalyzed . | . . . . . . Part Schematics Acquired . | . . . . . . Parts Damaged . | . . . . . . Bothacking | -11 -10 -10 -10 -9 -8 ------------ Run | Scr Mat Min Exi Min Mat Used RIF Installer . | . . . . . . Robots Hacked . | . . . . . . Non-combat . | . . . . . . Combat . | . . . . . . Robot Hacks Applied . | . . . . . . Relay Couplers Released . | . . . . . . Fabnet Peak Effective % . | . . . . . . Robots Rewired . | . . . . . . Allies Hacked . | . . . . . . Hacks Repelled . | . . . . . . Allies | -11 -10 -10 -10 -9 -8 -------- Run | Scr Mat Min Exi Min Mat Total Allies 5 | . . . . 5 . Largest Group 4 | . . . . 4 4 Highest-Rated Group 75 | . . . . 75 75 Highest-Rated Ally 31 | . . . . 31 31 Total Orders . | . . . . . . Ally Attacks 15 | . . . . . 15 Total Damage 197 | . . . . . 197 Kills 3 | . . . . . 3 Allies Corrupted . | . . . . . . Allies Melted . | . . . . . . Intel | -11 -10 -10 -10 -9 -8 ------- Run | Scr Mat Min Exi Min Mat Robot Analysis Total . | . . . . . . Derelict Logs Recovered 1 | . . . . 1 . Drone Launches . | . . . . . . Drone Recoveries . | . . . . . . Exploration | -11 -10 -10 -10 -9 -8 ------------- Run | Scr Mat Min Exi Min Mat Turns Passed 3617 | 165 1033 841 700 491 387 Spaces Moved 1829 | 90 463 364 434 301 177 Core 2 | 2 . . . . . Treads 1706 | 88 463 364 434 301 56 Legs . | . . . . . . Wheels 121 | . . . . . 121 Hover . | . . . . . . Flight . | . . . . . . Fastest Speed 50 | 50 160 160 160 160 95 Average Speed 156 | 157 160 160 160 160 123 Slowest Speed 240 | 160 160 160 160 160 240 Overloaded Moves . | . . . . . . Propulsion Burnouts . | . . . . . . Robots Hopped . | . . . . . . Cave-ins Triggered . | . . . . . . Exploration Rate (%) 53 | 7 75 66 76 73 22 Regions Visited 5 Branch Regions 3 Pre-discovered Areas . | . . . . . . Known Exits Taken 1 | . 1 . . . . Unknown Exits Taken 4 | 1 . 1 1 1 . Scrap Searched 3 | . . 2 . 1 . Spaces Dug . | . . . . . . Terrain Destroyed 27 | . . 27 . . . Melee . | . . . . . . Projectile . | . . . . . . AOE 27 | . . 27 . . . Terrain Rammed . | . . . . . . Walls Destroyed . | . . . . . . Machines Disabled . | . . . . . . Actions | -11 -10 -10 -10 -9 -8 --------- Run | Scr Mat Min Exi Min Mat Total 2397 | 104 707 559 440 311 276 Wait 381 | . 185 139 . 11 46 Move 1824 | 89 462 363 433 300 177 Hop . | . . . . . . Pick Up 25 | 6 13 2 3 . 1 Fast Attach 12 | 6 3 . . . 3 Attach 11 | . . 1 1 . 9 Detach 2 | . 1 . . . 1 Swap 17 | . 7 6 1 . 3 Drop 21 | . 11 4 2 . 4 Fire 104 | 3 25 44 . . 32 Melee . | . . . . . . Ram . | . . . . . . Kick . | . . . . . . Crush . | . . . . . . Escape Stasis . | . . . . . . Rewire . | . . . . . . Trap . | . . . . . . Miscellaneous . | . . . . . . Route ------- -11/Scrapyard -10/Materials (discovered 2 exits: [*Mat] / *Min) -10/Mines (discovered 3 exits: [*Mat x2] / *Exi) -10/Exiles -9/Mines -8/Materials History --------- Turn | Location | Event 31 | -11/Scrapyard | Discovered new exit (range 16) 166 | -11/Scrapyard | Entered Materials 319 | -10/Materials | Build established: Mutant 709 | -10/Materials | Identified exit to Mines 747 | -10/Materials | Discovered new exit (range 10) 1199 | -10/Materials | Entered Mines 1356 | -10/Mines | Discovered new exit (range 6) 1449 | -10/Mines | Discovered new exit (range 6) 1530 | -10/Mines | Assembled infested the area 2032 | -10/Mines | Deemed a non-threat by the Exiles lab entrance 2032 | -10/Mines | Discovered new exit (range 5) 2040 | -10/Mines | Entered Exiles 2084 | -10/Exiles | Met 8R-AWN 2111 | -10/Exiles | Met EX-HEX 2164 | -10/Exiles | Met EX-BIN 2183 | -10/Exiles | Aligned with FarCom system 2184 | -10/Exiles | Given EX-Vault access code 2223 | -10/Exiles | Opened EX-Vault 2232 | -10/Exiles | Found Trap Reconfigurator 2276 | -10/Exiles | Warned to stay clear of 0b10 Research branches 2497 | -10/Exiles | Met EX-DEC 2549 | -10/Exiles | Visited The Gauntlet 2716 | -10/Exiles | Discovered new exit (range 14) 2740 | -10/Exiles | Left Exiles lab with Trap Reconfigurator 2740 | -10/Exiles | Entered Mines 2982 | -9/Mines | Learned location of 1 exit from Proximity Caves 3083 | -9/Mines | Assisted by bots powering up and referring to "LRC-V3" 3159 | -9/Mines | Met a Derelict who couldn't figure out how to use a Trap Extractor 3164 | -9/Mines | Core integrity fell below 50% 3215 | -9/Mines | Discovered new exit (range 11) 3231 | -9/Mines | Entered Materials 3231 | -8/Materials | Accompanied by 4 allies 3231 | -8/Materials | Evolved 4 slots: Propulsion x1, Utility x2, Weapon x1 3236 | -8/Materials | Led the pair of lost Derelicts to an unsafe place 3562 | -8/Materials | Destroyed 10 combat bots 3609 | -8/Materials | Lost 3 parts (2n1w) 3618 | -8/Materials | Self-destructed Last Messages --------------- 03552_ Wheel destroyed. 03554_ K-01 Serf collects debris. 03571_ R-06 Scavenger collects Imp. Heat Sink. 03572_ G-47 Trooper destroyed. 03574_ R-06 Scavenger collects Lgt. Nuclear Core. 03578_ Wheel destroyed. 03579_ G-47 Trooper destroyed. 03584_ K-01 Serf collects debris. 03584_ Acquired 37 matter. 03587_ K-01 Serf collects debris. 03593_ W-25 Informer distress signal alerts nearby ally. 03594_ K-01 Serf collects debris. 03598_ R-06 Scavenger collects Lgt. Nuclear Core. 03600_ K-01 Serf collects debris. 03601_ R-06 Scavenger collects Particle Gun. 03604_ K-01 Serf collects debris. 03606_ R-06 Scavenger collects Aluminum Leg. 03607_ K-01 Serf collects debris. 03609_ R-06 Scavenger collects Aluminum Leg. 03611_ K-01 Serf collects debris. Map ----- +----------------------------------------------------+ | | | | | | | | | | | | | | | | | | | | | | | | | ???????????????????????????????############??????? | | ???????????????????????????????### "" ##?????? | | ???????????????????????????????## ""S ##?????? | | ????????????????????????????????## "" ##?????? | | ????????????????????????????????## ##?????? | | ????????????????????????????????## %! ##?????? | | ????????????????????????????????## ! """ ##?????? | | ????????????????????????????????## ! %"""=##?????? | | ????????????????????????????????## *!%"""!##?????? | | ????????????????????????????????## [%%%==%##?????? | | ????????????????????#######?????######+#####?????? | | ????????????????????# #?########%=%=%###?????? | | ???????????????"T" # ##########%% %=##??????? | | ?????????????# + @ g %!####????? | | ?????????????#] # ########## ######### | | ????????????????????# #?########w # ####### | | ????????????????????## ##???????### ##"""""T"# | | ?????????????????????# ?????????### % | | ?????????????????????# k ## ? # % | | ?????????????????????# w## / % | | ?????????????????????# ## "Y" # % % """ | | ?????????????????????# % ## """ # % """ | | ?????????????????????# ?############ g """ | | ?????????????????????# ??? % | | ????????????????????? ?????????? | | ????????????????????? ????????? | | ????????????????????? ???????? [ | | ?????????????????????##???????s ######### | | ?????????????????????????????? ################## | | ?????????????????????????????s? # ####??????? | | ???????????????????????????????????????###???????? | | ?????????????????????????????????????????????????? | | ?????????????????????????????????????????????????? | | ?????????????????????????????????????????????????? | | ?????????????????????????????????????????????????? | | ?????????????????????????????????????????????????? | | ?????????????????????????????????????????????????? | | ?????????????????????????????????????????????????? | +----------------------------------------------------+ Best States ------------- Heat Dissipation 45 Energy Generation 14 Energy Capacity 250 Matter Stores 300 Matter Capacity 300 Sight Range 16 Terrain Scan Density 10 Armor Coverage 150 Resistance: KI 20 Resistance: TH 20 Resistance: EX 20 Resistance: EM 20 Resistance: I 20 Resistance: S 20 Resistance: P 20 Evasion (%) 41 Recoil Reduction 2 Offensive Hacking 10 Item Schematics ----------------- None Robot Schematics ------------------ None Fabricated ------------ Nothing Alien Tech Used ----------------- None Achievements -------------- None Challenges ------------ None Game ------ Seed HugePortableScrap Manual? 0 Play Time 00:31:46 Cumulative 45.9 hours Start 2021.11.12 @ 12:59:34 End 2021.11.12 @ 13:47:28 Sessions 1 Manual Loads 0 Difficulty Adventurer Special Mode None Game No. 27 Rogue 7 Adventurer 20 Explorer 0 Win Type - Total 1 Types 1/0/0/0/0/0/0/0/0 Lore% 29 Gallery% 41 Achievement% 34 Wizard Run 0 Options --------- ASCII 0 Keyboard 0 Movement Mouse Keybinds 0 Fullscreen 1 Font 24/Smallcaps Map View 76x50 Tactical HUD 1 Map Filters NONE Filters NONE Steam 1 RUN: 93f9afec-b708-40d6-8dac-645c110228be